Cogmind - Beta 10.2 @@@ ROGUE MODE // 2020.12.15 @ 21:58:57 Player: Hermelin Result: Destroyed by Enhanced Grunt with Neutron Cannon Performance ------------- Evolutions (3) 1500 Regions Visited (9) 1800 Robots Destroyed (94) 470 Value Destroyed (2607) 2607 Prototype IDs (245) 4900 Alien Tech Used (0) 0 Bonus (3752) 3752 TOTAL SCORE: 15029 Bonus ------- High Alert Combat Kills 33 Follower Combat Kills 119 Aligned with FarCom 300 Met Data Miner 300 Used Data Conduit 3000 Cogmind --------- Core Integrity 0/700 Matter 290/300 Energy 8/100 System Corruption 2% Temperature Cool (12) Movement Core (50) Location -7/Data Miner Parts ------- > --- POWER (2) -------- (None) > --- PROPULSION (4) --- (None) > --- UTILITY (5) ------ Improved Melee Analysis Suite Armor Integrity Analyzer > --- WEAPON (2) ------- (None) > --- INVENTORY (4) ---- Compact Battery (300) Peak State ------------ > --- POWER ------------ Improved Deuterium Engine Reinforced Deuterium Engine > --- PROPULSION ------- Medium Treads Medium Treads Xenon Bombardment Thruster Xenon Bombardment Thruster > --- UTILITY ---------- High-capacity Storage Unit High-capacity Storage Unit High-capacity Storage Unit Improved Targeting Computer Hacking Suite > --- WEAPON ----------- Advanced Assault Cannon Advanced Assault Cannon > --- INVENTORY -------- Improved Deuterium Engine Gravmag System Large Storage Unit High-capacity Matter Pod High-capacity Matter Pod Experimental Sensor Array Improved Signal Interpreter Advanced Terrain Scanner Improved Melee Analysis Suite Armor Integrity Analyzer Microactuators Cloak of Protection Heavy EM Pulse Gun Heavy EM Shotgun Arc Projector Autogun Autogun Improved Assault Rifle Gauss Rifle Gauss Rifle Advanced EMP Blaster Advanced EMP Blaster Powered Hammer Greatsword Signal Generator [Rating: 49] Favorites ----------- Power Reinforced Deuterium Engine Engine Reinforced Deuterium Engine Propulsion Improved Treads Treads Improved Treads Flight Unit Improved Flight Unit Utility High-capacity Storage Unit Device Cloak of Protection Storage High-capacity Storage Unit Processor Improved Targeting Computer Hackware Hacking Suite Protection Light Armor Plating Weapon Autogun Energy Gun Heavy EM Shotgun Ballistic Gun Autogun Ballistic Cannon Advanced Assault Cannon Launcher Advanced EMP Blaster Impact Weapon Powered Hammer Slashing Weapon Chainsword Special Melee Weapon Datajack Build | -11 -10 -10 -10 -9 -8 -7 -7 -7 -7 ------- Run | Scr Mat Min Exi Min Mat Fac Low Low Dat Slots Evolved 6 | . . . . . 4 2 . . . Power 1 | . . . . . . 1 . . . Propulsion 2 | . . . . . 1 1 . . . Utility 3 | . . . . . 3 . . . . Weapon . | . . . . . . . . . . Parts Attached 91 | 7 11 1 2 5 25 30 1 1 8 Power 14 | 1 2 1 . 2 1 5 1 . 1 Engine 14 | 1 2 1 . 2 1 5 1 . 1 Core . | . . . . . . . . . . Reactor . | . . . . . . . . . . Propulsion 26 | 2 1 . . 3 6 13 . 1 . Treads 16 | 2 1 . . 3 5 5 . . . Leg . | . . . . . . . . . . Wheel . | . . . . . . . . . . Hover . | . . . . . . . . . . Flight 10 | . . . . . 1 8 . 1 . Utility 21 | 2 5 . . . 7 5 . . 2 Device 6 | . . . . . 3 1 . . 2 Storage 9 | 2 5 . . . 1 1 . . . Processor 4 | . . . . . 1 3 . . . Hackware 1 | . . . . . 1 . . . . Protection 1 | . . . . . 1 . . . . Artifact . | . . . . . . . . . . Weapon 30 | 2 3 . 2 . 11 7 . . 5 Energy Gun 4 | . . . . . 3 . . . 1 Energy Cannon . | . . . . . . . . . . Ballistic Gun 13 | 2 3 . 1 . 5 2 . . . Ballistic Cannon 3 | . . . . . 1 2 . . . Launcher 2 | . . . . . 1 . . . 1 Special Weapon . | . . . . . . . . . . Impact Weapon 3 | . . . . . 1 1 . . 1 Slashing Weapon 4 | . . . . . . 2 . . 2 Piercing Weapon . | . . . . . . . . . . Special Melee Weapon 1 | . . . 1 . . . . . . Unidentified Prototypes 7 | . . . . . 6 1 . . . Parts Lost 27 | . . 1 . . 2 7 1 3 13 Power 4 | . . 1 . . . . 1 1 1 Propulsion 11 | . . . . . 1 5 . 2 3 Utility 5 | . . . . . 1 . . . 4 Weapon 7 | . . . . . . 2 . . 5 Highest Loss Streak 13 | . . 1 . . 2 3 1 3 13 Average Slot Usage (%) 95 | . 99 100 100 100 98 94 91 73 65 Engine 10 | . 14 14 14 14 8 11 6 1 1 Treads 22 | . 28 28 28 28 27 20 . . . Flight 5 | . . . . . . 8 30 24 20 Storage 22 | . 28 28 28 28 26 18 7 7 2 Processor 7 | . . . . . 8 10 23 23 23 Hackware 3 | . . . . . 3 7 7 7 6 Energy Gun 1 | . . . . . 4 2 . . . Ballistic Gun 14 | . 27 28 16 28 13 . . . . Ballistic Cannon 1 | . . . . . . 8 . . . Slashing Weapon 1 | . . . . . . 1 7 7 6 Special Melee Weapon 1 | . . . 11 . . . . . . Naked Turns . | . . . . . . . . . . Heaviest Build 135 | 16 75 75 75 85 125 135 27 27 19 Greatest Support 102 | 40 40 40 40 46 79 102 24 24 19 Greatest Overweight (x) 9 | 1 1 1 1 2 2 9 8 2 2 Average Overweight (x) . | . . 1 1 1 1 . . . . Largest Inventory Capacity 28 | 8 20 20 20 20 28 28 10 10 10 Average Capacity 19 | 6 16 20 20 20 27 23 10 10 5 Most Carried 28 | 2 19 19 19 20 28 28 10 10 10 Average Carried 18 | 1 14 18 18 19 25 22 9 9 5 Final Capacity 28 | 8 20 20 20 20 28 10 10 10 4 Final Carried 28 | 2 19 18 19 20 28 10 9 10 1 Class Distribution -------------------- 70% | Hauler-Mutant 16% | Mutant 8% | Sprinter Dominant Class ---------------- Mutant | -10/Materials Hauler-Mutant | -10/Mines Hauler-Mutant | -10/Exiles Hauler-Mutant | -9/Mines Hauler-Mutant | -8/Materials Hauler-Mutant | -7/Factory Sprinter | -7/Lower Caves Mutant | -7/Lower Caves Gladiator | -7/Data Miner Resources | -11 -10 -10 -10 -9 -8 -7 -7 -7 -7 ----------- Run | Scr Mat Min Exi Min Mat Fac Low Low Dat Matter Collected 3138 | 290 681 324 100 156 750 779 20 10 28 Remotely . | . . . . . . . . . . Salvage Created 3453 | 55 661 301 . 196 980 833 122 169 136 Parts 210 | 3 38 16 . 9 69 53 5 8 9 Haulers Intercepted 8 | . 2 . . . 5 1 . . . Recyclers Shooed 3 | . . 1 . . 1 1 . . . Parts Field Recycled . | . . . . . . . . . . Retrieved Matter . | . . . . . . . . . . Parts Self-Destructed 11 | . . . . . . . 5 6 . Prevented . | . . . . . . . . . . Kills | -11 -10 -10 -10 -9 -8 -7 -7 -7 -7 ------- Run | Scr Mat Min Exi Min Mat Fac Low Low Dat Combat Hostiles Destroyed 76 | . 15 5 . 5 21 21 3 5 1 Melee 10 | . . . . . . 2 3 4 1 Guns 51 | . 15 5 . 5 21 5 . . . Cannons 12 | . . . . . . 12 . . . AOE 1 | . . . . . . 1 . . . Classes Destroyed 12 | 1 4 . . . 3 3 . 1 . Worker 2 | . . . . . 2 . . . . Hauler 8 | . 2 . . . 5 1 . . . Recycler 5 | 1 1 2 . . . 1 . . . Operator 1 | . 1 . . . . . . . . Watcher 1 | . . . . . . 1 . . . Swarmer 36 | . 6 3 . . 11 9 3 4 . Grunt 26 | . 9 2 . 5 6 4 . . . Duelist 2 | . . . . . . 2 . . . Sentry 6 | . . . . . 3 3 . . . Hunter 1 | . . . . . 1 . . . . Programmer 3 | . . . . . . 3 . . . Enhanced Grunt 1 | . . . . . . . . . 1 Mutant 1 | . . . . . . . . 1 . Best Kill Streak 6 | 1 5 2 . 3 6 5 3 4 1 Combat Bots Only 6 | . 5 2 . 3 6 5 3 4 1 Max Kills in Single Turn 2 | 1 2 1 . 1 2 2 1 1 1 Gunslinging 1 | . 1 . . . 1 . . . . Exploded 1 | . . . . . . 1 . . . Melee 1 | . . . . . . 1 1 1 1 Uniques/NPCs Destroyed 1 | . . . . . . . . . 1 Data Miner (-7/Data Miner) Combat | -11 -10 -10 -10 -9 -8 -7 -7 -7 -7 -------- Run | Scr Mat Min Exi Min Mat Fac Low Low Dat Damage Taken 5008 | . 550 99 . 152 848 1714 337 276 1032 Core 887 | . 80 15 . 13 36 170 166 115 292 Absorbed by Shields . | . . . . . . . . . . Core Remaining (%) 83 | 100 . . . 56 93 . . . . Volleys Fired 215 | 5 52 19 . 12 73 52 . . 2 Largest 2 | 2 2 2 . 2 2 2 . . 1 Hottest 96 | 40 46 46 . 46 73 96 . . 50 Shots Fired 409 | 10 104 38 . 24 136 95 . . 2 Gun 344 | 10 104 38 . 24 136 31 . . 1 Cannon 64 | . . . . . . 64 . . . Launcher 1 | . . . . . . . . . 1 Special . | . . . . . . . . . . Kinetic 370 | 10 104 38 . 24 130 64 . . . Thermal . | . . . . . . . . . . Explosive . | . . . . . . . . . . Electromagnetic 39 | . . . . . 6 31 . . 2 Robot Hit Streak 22 | 5 14 15 . 8 22 8 . . . Robot Miss Streak 5 | 1 3 2 . 2 3 5 . . 3 Penetration Max . | . . . . . . . . . . Secondary Targets 6 | . 1 . . 2 2 1 . . . Max Gunslinging Chain 1 | . 1 . . 1 1 1 . . . Shots Hit Robots 330 | 7 72 30 4 16 104 67 9 14 7 Core Hits 138 | 3 23 10 . 9 45 33 3 5 7 Critical Hits 1 | . . . . . . 1 . . . Critical Kills 1 | . . . . . . 1 . . . Critical Parts Destroyed . | . . . . . . . . . . Melee Attacks 58 | . . . 4 . 1 7 16 17 13 Impact 25 | . . . . . 1 4 11 9 . Slashing 29 | . . . . . . 3 5 8 13 Piercing . | . . . . . . . . . . Sneak Attacks 6 | . . . 4 . . 1 . . 1 Combat Hostiles . | . . . . . . . . . . Follow-up Attacks 4 | . . . . . . 1 3 . . Damage Inflicted 6548 | 57 1023 455 . 234 1510 1967 326 471 505 Guns 3638 | 57 1023 455 . 234 1510 352 . . 7 Cannons 1099 | . . . . . . 1099 . . . Explosions 275 | . . . . . . 275 . . . Melee 1532 | . . . . . . 241 326 471 494 Ramming 4 | . . . . . . . . . 4 Kinetic 4304 | 57 1023 455 . 234 1436 1099 . . . Thermal 275 | . . . . . . 275 . . . Explosive . | . . . . . . . . . . Electromagnetic 433 | . . . . . 74 352 . . 7 Impact 640 | . . . . . . 144 215 281 . Slashing 892 | . . . . . . 97 111 190 494 Piercing . | . . . . . . . . . . Highest Corruption 4 | . . . . . 4 2 2 2 2 Average Corruption 2 | . . . . . 4 1 2 2 2 Corruption Purged . | . . . . . . . . . . Effects 25 | . . . . . 14 3 3 4 1 Message Errors 11 | . . . . . 6 1 2 2 . Matter Fused 6 | . . . . . 6 . . . . Heat Flow Errors 2 | . . . . . . 1 . . 1 Energy Discharges 3 | . . . . . 1 . . 2 . Data Loss (minor) 3 | . . . . . 1 1 1 . . Overload Shots . | . . . . . . . . . . Overflow Damage 103 | . . . . . . 37 47 19 . Projectiles 10 | . . . . . . 10 . . . Explosions . | . . . . . . . . . . Melee 93 | . . . . . . 27 47 19 . Knockbacks 11 | . . . . . . 9 1 1 . Impact 2 | . . . . . . . 1 1 . Kinetic 9 | . . . . . . 9 . . . Secondary . | . . . . . . . . . . Self-Inflicted Damage 2 | . . . . . . . . . 2 Shots . | . . . . . . . . . . Rammed 3 | . . . . . . . . . 3 Targets Rammed 3 | . . . . . . . . . 3 Kicked . | . . . . . . . . . . Crushed . | . . . . . . . . . . Highest Temperature 360 | . 34 34 . 80 79 360 . . 146 Average Temperature 58 | . 10 9 . 26 20 114 . . 65 Received Heat Transfer 855 | . 174 36 . 84 234 195 . . 132 Effects 2 | . . . . . . 2 . . . Energy Bleed 1 | . . . . . . 1 . . . Matter Decay 1 | . . . . . . 1 . . . Siege Activations . | . . . . . . . . . . Robots Corrupted 1 | . . . . . . 1 . . . Combat Hostiles 1 | . . . . . . 1 . . . Parts Fried 4 | . . . . . . 3 . 1 . Impact Corruptions 7 | . . . . . . 1 4 2 . Robots Melted . | . . . . . . . . . . Combat Hostiles . | . . . . . . . . . . Parts Melted . | . . . . . . . . . . Heat Transferred 200 | . . . . . . 200 . . . Parts Sabotaged . | . . . . . . . . . . Parts Stolen . | . . . . . . . . . . Parts Stripped . | . . . . . . . . . . Power Chain Reactions 2 | . . . . . . 2 . . . Missiles Intercepted . | . . . . . . . . . . Alert | -11 -10 -10 -10 -9 -8 -7 -7 -7 -7 ------- Run | Scr Mat Min Exi Min Mat Fac Low Low Dat Peak Influence 464 | 5 282 126 . 104 464 392 . . . Initial 56 | . 3 56 . . . 54 . . . Average 168 | 1 154 71 . 60 211 280 . . . Maximum Alert Level 2 | . 1 . . . 2 1 . . . Low Security (%) 61 | 100 67 100 . 100 50 17 . . . Level 1 35 | . 32 . . . 39 82 . . . Level 2 2 | . . . . . 9 . . . . Level 3 . | . . . . . . . . . . Level 4 . | . . . . . . . . . . Level 5 . | . . . . . . . . . . High Security . | . . . . . . . . . . Max Security . | . . . . . . . . . . Squads Dispatched 13 | . 3 . . 1 2 7 . . . Investigation 4 | . 2 . . . 1 1 . . . Extermination 3 | . . . . . . 3 . . . Reinforcement 4 | . 1 . . . 1 2 . . . Assault 2 | . . . . 1 . 1 . . . Garrison . | . . . . . . . . . . Intercept . | . . . . . . . . . . Construction Impeded 1 | . . . . . 1 . . . . Haulers Reinforced 2 | . . . . . . 2 . . . Stealth | -11 -10 -10 -10 -9 -8 -7 -7 -7 -7 --------- Run | Scr Mat Min Exi Min Mat Fac Low Low Dat Distress Signals 5 | . 2 1 . . 1 1 . . . Communications Jammed . | . . . . . . . . . . Distress Signals . | . . . . . . . . . . Times Spotted 120 | . 28 5 . 8 30 35 3 7 4 Peak Tracking Total 7 | . 7 2 . 2 7 4 3 4 3 Tactical Retreats 3 | . . . . . . 3 . . . Traps | -11 -10 -10 -10 -9 -8 -7 -7 -7 -7 ------- Run | Scr Mat Min Exi Min Mat Fac Low Low Dat Traps Triggered 3 | . 1 . . . . 2 . . . Indirectly . | . . . . . . . . . . Trap Hack Attempts . | . . . . . . . . . . Triggered . | . . . . . . . . . . Disarmed . | . . . . . . . . . . Reprogrammed . | . . . . . . . . . . Reused . | . . . . . . . . . . Traps Extracted . | . . . . . . . . . . Installed . | . . . . . . . . . . Triggered 1 | . . . . . . . . 1 . Machines | -11 -10 -10 -10 -9 -8 -7 -7 -7 -7 ---------- Run | Scr Mat Min Exi Min Mat Fac Low Low Dat Machines Disabled 6 | . . . . 2 . 3 . 1 . Max in Single Turn 2 | . . . . 1 . 2 . 1 . Machines Sabotaged . | . . . . . . . . . . Garrisons Compromised . | . . . . . . . . . . Overloaded Fab Kills . | . . . . . . . . . . Fab Network Shutdowns . | . . . . . . . . . . Hacking | -11 -10 -10 -10 -9 -8 -7 -7 -7 -7 --------- Run | Scr Mat Min Exi Min Mat Fac Low Low Dat Machines Accessed 28 | . 9 . 2 1 8 4 . . 4 Terminals 13 | . 6 . . . 5 2 . . . Fabricators 1 | . . . . . . 1 . . . Repair Stations 3 | . 1 . . . 1 1 . . . Recycling Units 2 | . 2 . . . . . . . . Scanalyzers 2 | . . . . . 2 . . . . Garrison Access . | . . . . . . . . . . Total Hacks 117 | . 32 . 2 1 41 14 . . 27 Successful 87 | . 15 . 2 1 34 8 . . 27 Failed 28 | . 16 . . . 6 6 . . . Catastrophic 3 | . . . . . 3 . . . . Database Lockouts 2 | . 1 . . . 1 . . . . Manual 31 | . 22 . 1 . 7 1 . . . Terminals 44 | . 24 . . . 14 6 . . . Fabricators 2 | . . . . . . 2 . . . Repair Stations 11 | . 3 . . . 2 6 . . . Recycling Units 5 | . 5 . . . . . . . . Scanalyzers 25 | . . . . . 25 . . . . Garrison Access . | . . . . . . . . . . Terminal Hacks 49 | . 8 . 2 1 7 4 . . 27 Record 12 | . . . 1 . . . . . 11 Part Schematic 13 | . . . . . 4 1 . . 8 Robot Schematic 6 | . . . . . . 1 . . 5 Robot Analysis 3 | . 2 . . . . 1 . . . Prototype ID Bank 5 | . . . . . 1 1 . . 3 Open Door 1 | . . . . 1 . . . . . Terminal Index 1 | . 1 . . . . . . . . Unreport Threat 1 | . . . . . 1 . . . . Locate Traps 4 | . 3 . . . 1 . . . . Zone Layout 2 | . 2 . . . . . . . . EX-Prototype ID Bank 1 | . . . 1 . . . . . . Fabricator Hacks . | . . . . . . . . . . Repair Station Hacks 7 | . 2 . . . 2 3 . . . Scan Component 4 | . 1 . . . 1 2 . . . Repair 2 | . 1 . . . 1 . . . . Refit 1 | . . . . . . 1 . . . Recycling Unit Hacks 1 | . 1 . . . . . . . . Report Inventory 1 | . 1 . . . . . . . . Scanalyzer 25 | . . . . . 25 . . . . Insert Component 11 | . . . . . 11 . . . . Analyze 14 | . . . . . 14 . . . . Garrison Access Hacks . | . . . . . . . . . . Unauthorized Hacks 5 | . 4 . . . . 1 . . . Terminals 2 | . 2 . . . . . . . . Botnet 1 | . 1 . . . . . . . . Operators 1 | . 1 . . . . . . . . Fabricators 1 | . . . . . . 1 . . . Siphon 1 | . . . . . . 1 . . . Repair Stations . | . . . . . . . . . . Recycling Units 2 | . 2 . . . . . . . . Tunnel 2 | . 2 . . . . . . . . Scanalyzers . | . . . . . . . . . . Garrison Access . | . . . . . . . . . . Data Cores Recovered . | . . . . . . . . . . Used . | . . . . . . . . . . Hacking Detections 21 | . 9 . . . 8 4 . . . Full Trace Events 2 | . . . . . 1 1 . . . Feedback Events . | . . . . . . . . . . Feedback Blocked . | . . . . . . . . . . Robot Schematics Acquired 6 | . . . . . . 1 . . 5 Robots Built . | . . . . . . . . . . Matter . | . . . . . . . . . . Time . | . . . . . . . . . . Total Robot Build Rating . | . . . . . . . . . . Part Schematics Acquired 23 | . . . . . 14 1 . . 8 Parts Built . | . . . . . . . . . . Matter . | . . . . . . . . . . Time . | . . . . . . . . . . Total Part Build Rating . | . . . . . . . . . . Parts Repaired 2 | . 1 . . . 1 . . . . Time 76 | . 32 . . . 44 . . . . Parts Recycled . | . . . . . . . . . . Recycled Matter . | . . . . . . . . . . Retrieved Matter . | . . . . . . . . . . Retrieved Components . | . . . . . . . . . . Parts Scanalyzed 10 | . . . . . 10 . . . . Part Schematics Acquired 10 | . . . . . 10 . . . . Parts Damaged . | . . . . . . . . . . Bothacking | -11 -10 -10 -10 -9 -8 -7 -7 -7 -7 ------------ Run | Scr Mat Min Exi Min Mat Fac Low Low Dat Used RIF Installer . | . . . . . . . . . . Robots Hacked 4 | . . . 4 . . . . . . Non-combat 3 | . . . 3 . . . . . . Combat 1 | . . . 1 . . . . . . Robot Hacks Applied 4 | . . . 4 . . . . . . parse_system 4 | . . . 4 . . . . . . Relay Couplers Released . | . . . . . . . . . . Robots Rewired . | . . . . . . . . . . Allies Hacked 1 | . . . . . . 1 . . . Hacks Repelled . | . . . . . . . . . . Allies | -11 -10 -10 -10 -9 -8 -7 -7 -7 -7 -------- Run | Scr Mat Min Exi Min Mat Fac Low Low Dat Total Allies 5 | . . . . 2 . 3 . . . Largest Group 3 | . . . . 1 . 3 . . . Highest-Rated Group 93 | . . . . 31 . 93 . . . Highest-Rated Ally 31 | . . . . 31 . 31 . . . Total Orders . | . . . . . . . . . . Ally Attacks 39 | . . . . 14 . 25 . . . Total Damage 485 | . . . . 229 . 256 . . . Kills 6 | . . . . 5 . 1 . . . Allies Corrupted . | . . . . . . . . . . Allies Melted . | . . . . . . . . . . Intel | -11 -10 -10 -10 -9 -8 -7 -7 -7 -7 ------- Run | Scr Mat Min Exi Min Mat Fac Low Low Dat Robot Analysis Total 118 | . 2 . . . . 1 . . 115 Derelict Logs Recovered 7 | . . 2 . 2 . . 1 2 . Drone Launches . | . . . . . . . . . . Drone Recoveries . | . . . . . . . . . . Exploration | -11 -10 -10 -10 -9 -8 -7 -7 -7 -7 ------------- Run | Scr Mat Min Exi Min Mat Fac Low Low Dat Turns Passed 8318 | 135 1359 506 743 1265 1687 1387 534 529 173 Spaces Moved 4511 | 70 663 253 407 653 576 842 538 416 93 Core 13 | 3 . . . . . . 2 . 8 Treads 3055 | 67 663 253 407 653 576 436 . . . Legs . | . . . . . . . . . . Wheels . | . . . . . . . . . . Hover . | . . . . . . . . . . Flight 1443 | . . . . . . 406 536 416 85 Fastest Speed 26 | 50 160 180 180 180 180 26 26 30 30 Average Speed 137 | 156 169 180 180 180 180 121 54 48 34 Slowest Speed 757 | 160 180 180 180 200 200 757 450 172 150 Overloaded Moves . | . . . . . . . . . . Propulsion Burnouts . | . . . . . . . . . . Robots Hopped . | . . . . . . . . . . Cave-ins Triggered . | . . . . . . . . . . Exploration Rate (%) 60 | 7 97 61 70 95 50 19 63 66 76 Regions Visited 9 Branch Regions 6 Pre-discovered Areas 29 | . 2 2 1 . . . . . 24 Known Exits Taken 4 | . . . . . 1 1 1 1 . Unknown Exits Taken 5 | 1 1 1 1 1 . . . . . Scrap Searched 10 | . . 1 . 4 . . 3 2 . Spaces Dug 2 | . . . . . 1 . . 1 . Terrain Destroyed 51 | . . . . . 1 49 . 1 . Melee 2 | . . . . . 1 . . 1 . Projectile 10 | . . . . . . 10 . . . AOE 39 | . . . . . . 39 . . . Terrain Rammed . | . . . . . . . . . . Walls Destroyed . | . . . . . . . . . . Machines Disabled . | . . . . . . . . . . Actions | -11 -10 -10 -10 -9 -8 -7 -7 -7 -7 --------- Run | Scr Mat Min Exi Min Mat Fac Low Low Dat Total 6240 | 83 817 274 413 727 1115 1113 763 722 213 Wait 1213 | . 60 2 . 37 410 126 213 277 88 Move 4502 | 69 662 252 406 652 575 841 537 415 93 Hop . | . . . . . . . . . . Pick Up 75 | 2 20 . 1 10 15 19 . 6 2 Fast Attach 35 | 7 2 . . . 11 11 . . 4 Attach 27 | . . 1 . . 5 15 1 1 4 Detach 7 | . . . . . 3 3 . 1 . Swap 30 | . 9 . 2 5 9 5 . . . Drop 80 | . 12 . . 11 13 35 . 5 4 Fire 215 | 5 52 19 . 12 73 52 . . 2 Melee 53 | . . . 4 . 1 6 12 17 13 Ram 3 | . . . . . . . . . 3 Kick . | . . . . . . . . . . Crush . | . . . . . . . . . . Escape Stasis . | . . . . . . . . . . Rewire . | . . . . . . . . . . Trap . | . . . . . . . . . . Miscellaneous . | . . . . . . . . . . Route ------- -11/Scrapyard -10/Materials (discovered 5 exits: [*Mat x3] / [*Min x2]) -10/Mines (discovered 2 exits: [*Mat] / *Exi) -10/Exiles -9/Mines -8/Materials (discovered 2 exits: *Fac x2) -7/Factory (discovered 2 exits: *Fac / *Low) -7/Lower Caves -7/Lower Caves -7/Data Miner (discovered 1 exit: [*Pro]) History --------- Turn | Location | Event 7 | -11/Scrapyard | Discovered new exit (range 16) 136 | -11/Scrapyard | Entered Materials 309 | -10/Materials | Build established: Mutant 328 | -10/Materials | Central database locked down 483 | -10/Materials | Discovered new exit (range 6) 640 | -10/Materials | Discovered new exit (range 13) 886 | -10/Materials | Discovered new exit (range 17) 939 | -10/Materials | Repaired Autogun 1027 | -10/Materials | Discovered new exit (range 16) 1137 | -10/Materials | Build established: Hauler-Mutant 1243 | -10/Materials | Discovered new exit (range 16) 1495 | -10/Materials | Entered Mines 1781 | -10/Mines | Learned location of Zion (-6) 1817 | -10/Mines | Discovered new exit (range 6) 1973 | -10/Mines | Deemed a non-threat by the Exiles lab entrance 1984 | -10/Mines | Assembled infested the area 1994 | -10/Mines | Discovered new exit (range 5) 2001 | -10/Mines | Entered Exiles 2045 | -10/Exiles | Met 8R-AWN 2077 | -10/Exiles | Met EX-HEX 2259 | -10/Exiles | Met EX-DEC 2335 | -10/Exiles | Met EX-BIN 2358 | -10/Exiles | Aligned with FarCom system 2360 | -10/Exiles | Given EX-Vault access code 2537 | -10/Exiles | Opened EX-Vault 2549 | -10/Exiles | Found Cloak of Protection 2586 | -10/Exiles | Warned to stay clear of 0b10 Research branches 2723 | -10/Exiles | Discovered new exit (range 14) 2744 | -10/Exiles | Left Exiles lab with Cloak of Protection 2744 | -10/Exiles | Entered Mines 2841 | -9/Mines | Met a Derelict who couldn't figure out how to use a Trap Extractor 2931 | -9/Mines | Learned location of 1 exit from Materials 3106 | -9/Mines | Received a Mining Laser from a helpful Derelict 3183 | -9/Mines | Found a damaged Exp. Sensor Array with a note attached 3187 | -9/Mines | Found Prototype Device 3239 | -9/Mines | Discovered new exit (range 9) 3345 | -9/Mines | Learned 4 Materials zone layouts 3496 | -9/Mines | Met a Derelict testing a Signal Generator 3514 | -9/Mines | Found Signal Generator 4009 | -9/Mines | Entered Materials 4009 | -8/Materials | Evolved 4 slots: Propulsion x1, Utility x3 4010 | -8/Materials | Identified exit to Factory 4010 | -8/Materials | Identified Exp. Sensor Array 4955 | -8/Materials | Discovered exit to Factory (range 15) 5435 | -8/Materials | Repaired Rnf. Deuterium Engine 5482 | -8/Materials | Central database locked down 5696 | -8/Materials | Entered Factory 5696 | -7/Factory | Evolved 2 slots: Power x1, Propulsion x1 5959 | -7/Factory | Lost 3 parts (1n2w) 6352 | -7/Factory | Allied Derelicts emerged from ambush trap array 6453 | -7/Factory | Discovered new exit (range 14) 6827 | -7/Factory | Identified exit to Factory 7080 | -7/Factory | Discovered new exit (range 8) 7082 | -7/Factory | Identified exit to Lower Caves 7083 | -7/Factory | Entered Lower Caves 7116 | -7/Lower Caves | Learned Factory trap positions 7216 | -7/Lower Caves | Encountered a Warlord checkpoint 7244 | -7/Lower Caves | Build established: Sprinter 7524 | -7/Lower Caves | Discovered new exit (range 13) 7535 | -7/Lower Caves | Identified exit to Lower Caves 7617 | -7/Lower Caves | Entered another Lower Caves area 7696 | -7/Lower Caves | Build established: Mutant 7724 | -7/Lower Caves | Core integrity fell below 50% 7765 | -7/Lower Caves | Lost 3 parts (1p2n) 7972 | -7/Lower Caves | Learned 4 Factory zone layouts 7973 | -7/Lower Caves | Learned 8 Factory zone layouts 8095 | -7/Lower Caves | Attacked by a delusional Derelict stockpiling parts 8126 | -7/Lower Caves | Discovered new exit (range 7) 8130 | -7/Lower Caves | Identified exit to Data Miner 8135 | -7/Lower Caves | Attracted the attention of an 0b10 checkpoint 8146 | -7/Lower Caves | Entered Data Miner 8146 | -7/Data Miner | Discovered new exit (range 6) 8152 | -7/Data Miner | Met Data Miner 8158 | -7/Data Miner | Learned location of Section 7 (-2) 8158 | -7/Data Miner | Acquired the access code to Warlord's prototype stash 8188 | -7/Data Miner | Received God Mode back door access code from Data Miner 8257 | -7/Data Miner | Destroyed Data Miner 8259 | -7/Data Miner | Interfaced with the Data Conduit 8313 | -7/Data Miner | Core integrity fell below 20% 8319 | -7/Data Miner | Destroyed by Enhanced Grunt with Neutron Cannon Last Messages --------------- 08292_ Enhanced Grunt Lyr. Medium Armor Plating severed. 08296_ Greatsword destroyed. 08298_ Chainsword destroyed. 08298_ Microactuators destroyed. 08300_ Lgt. Angular Momentum Engine destroyed. 08300_ Imp. Flight Unit destroyed. 08300_ Powered Hammer destroyed. 08302_ Slammed into Enhanced Grunt. 08303_ Acquired 8 matter. 08303_ Slammed into Enhanced Grunt. 08305_ Imp. Melee Analysis Suite permanently disabled. 08305_ Destabilizing: Short circuit. 08309_ Cloak of Protection destroyed. 08309_ Hacking Suite destroyed. 08312_ Acquired Hvy. EM Shotgun. 08315_ Hvy. EM Shotgun destroyed. 08317_ Acquired Adv. EMP Blaster. 08317_ Critical hit. 08317_ Imp. Signal Interpreter destroyed. 08319_ Adv. EMP Blaster destroyed. Map ----- +----------------------------------------------------+ | | | | | | | | | | | | | | | | | | | | | | | | | | | ??????????????????????????????????????????? | | ??????????????????????????????????????????? | | ??????????????????????????????????????????? | | ??????????????????????????????????????????? | | ?????????????????????????????????????####?? | | ????#################??????????????### #?? | | ????#"""!!=!""""""""######?#??????## #?? | | ???#""""%"""" """"""""# # # #### < ##?? | | ??#""""" = ### | | ???"""""""!% | | ???"""""" !%g ! g | | ???""""""%! ! | | ???"""""""! !@ | | ????"""""" g """"""""""""""""### | | ????""""""" """"###############?? | | ????""""""" """"###???????????????? | | ?????"""""""" "#####?????????????????? | | ??????######"## "#?????????????????????? | | ???????????#"### "#?????????????????????? | | ???????????#"### "#?????????????????????? | | ???????????#"?# "#?????????????????????? | | ?????????????## "#?????????????????????? | | ?????????????# "#?????????????????????? | | ?????????????### "#?????????????????????? | | ???????????????# "##????????????????????? | | ??????????????## ""#????????????????????? | | ?????????????## ""#????????????????????? | | ??????????##"#"X ""#????????????????????? | | ??????????""""" "####?????????????????? | | ??????????""""" X"""""?????????????????? | | ??????????##"#"X "##"#?????????????????? | | ???????????#?## X""""#?????????????????? | | ??????????????## "##"#?????????????????? | | ???????????????#######????????????????????? | | ??????????????????????????????????????????? | | ??????????????????????????????????????????? | | ??????????????????????????????????????????? | +----------------------------------------------------+ Best States ------------- Heat Dissipation 34 Energy Generation 27 Energy Capacity 480 Matter Stores 300 Matter Capacity 300 Sight Range 16 Terrain Scan Density 10 ECM Strength 2 Cloak Strength 5 Armor Coverage 150 Melee Speed Boost 20 Evasion (%) 64 Targeting Accuracy 6 Melee Accuracy 6 Armor Integrity Analysis 33 Recoil Reduction 4 Offensive Hacking 10 Item Schematics ----------------- Exp. Sensor Array | -8/Materials | Scanalyzed Adv. Treads | -8/Materials | Scanalyzed Lrg. Storage Unit | -8/Materials | Scanalyzed Armor Integrity Analyzer | -8/Materials | Scanalyzed Adv. EMP Blaster | -8/Materials | Scanalyzed Hacking Suite | -8/Materials | Hacked Hvy. EM Shotgun | -8/Materials | Scanalyzed Imp. Deuterium Engine | -8/Materials | Scanalyzed Med. Treads | -8/Materials | Scanalyzed Powered Hammer | -8/Materials | Scanalyzed Imp. ECM Suite | -8/Materials | Scanalyzed Hcp. Storage Unit | -8/Materials | Hacked Airjet | -8/Materials | Hacked Adv. Terrain Scanner | -8/Materials | Hacked Hrd. Heavy Armor Plating | -7/Factory | Hacked Combat Drone Bay | -7/Data Miner | Free Lgt. Regenerative Plating | -7/Data Miner | Free Exp. Flexi-carbon Leg | -7/Data Miner | Free Exp. Cesium-ion Thruster | -7/Data Miner | Free Triangulator | -7/Data Miner | Free Tactical Coordination Suite | -7/Data Miner | Free Mni. Smartbomb Launcher | -7/Data Miner | Free Kinetic Spear | -7/Data Miner | Free Robot Schematics ------------------ L-41 Fighter | -7/Factory | Hacked S-27 Virus | -7/Data Miner | Free G-50 Soldier | -7/Data Miner | Free H-66 Slayer | -7/Data Miner | Free P-70 Sage | -7/Data Miner | Free I-36 Angel | -7/Data Miner | Free Fabricated ------------ Nothing Alien Tech Used ----------------- None Achievements -------------- None Challenges ------------ None Game ------ Seed LightningLaserBlade Manual? 0 Play Time 01:11:17 Cumulative 416.3 hours Start 2020.12.15 @ 20:45:36 End 2020.12.15 @ 21:58:57 Sessions 1 Manual Loads 0 Difficulty Rogue Special Mode None Game No. 156 Rogue 153 Adventurer 3 Explorer 0 Win Type - Total 7 Types 4/1/0/1/0/1/0/0/0 Lore% 90 Gallery% 94 Achievement% 76 Wizard Run 0 Options --------- ASCII 0 Keyboard 0 Movement Numpad Keybinds 0 Fullscreen 1 Font 18/SmallcapsGlow Map View 76x50 Tactical HUD 1 Map Filters NONE Filters NONE Steam 1 RUN: 38da4d6d-97ca-4587-b554-29424a130619